bitfinex-derivatives/quotes_ETHF0:USTF0_20230104
["timestamp","ask_amount","ask_price","bid_price","bid_amount"]
[1672841553695,9.47566034,1252.8,1252.7,1.19429441]
[1672841553904,7.08577409,1252.8,1252.7,1.19429441]
[1672841554117,7.08577409,1252.8,1252.6,2.98573603]
[1672841554328,3.98954943,1252.7,1252.6,2.98573603]
[1672841554957,3.98954943,1252.7,1252.6,5.99303603]
[1672841555585,3.98954943,1252.7,1252.6,4.20159441]
[1672841555797,3.98954943,1252.7,1252.6,5.99303603]
[1672841556740,3.98954943,1252.7,1252.6,4.20159441]
[1672841557168,6.97632352,1252.7,1252.6,1.19429441]
[1672841557373,4.58577409,1252.7,1252.6,1.19429441]
[1672841558429,4.58577409,1252.7,1252.5,2.98573603]
[1672841558743,2.38939885,1252.6,1252.5,2.98573603]
[1672841559262,6.97517294,1252.7,1252.5,1.79144162]
[1672841559472,6.97517294,1252.7,1252.6,1.19441176]
[1672841560110,4.58577409,1252.7,1252.6,1.19441176]
[1672841560319,6.97430356,1252.7,1252.5,2.98585338]
[1672841560739,2.38852947,1252.6,1252.5,2.98585338]
[1672841561160,3.98752947,1252.7,1252.5,2.98585338]
[1672841561369,6.97430356,1252.7,1252.5,2.98585338]
[1672841562524,3.98752947,1252.7,1252.5,2.98585338]
[1672841563475,6.97430356,1252.7,1252.5,2.98585338]
[1672841563683,3.98752947,1252.7,1252.5,1.19441176]
[1672841563889,1.585,1252.6,1252.5,2.98585338]
[1672841564100,4.085,1252.6,1252.5,2.98585338]
[1672841564527,6.47352947,1252.6,1252.5,1.19441176]
[1672841565158,4.085,1252.6,1252.5,1.19441176]
[1672841565370,4.085,1252.6,1252.5,2.98585338]
[1672841565687,4.085,1252.6,1252.5,1.19441176]
[1672841567470,8.07252947,1252.6,1252.4,4.20171176]
[1672841567677,3.97352947,1252.5,1252.4,4.20171176]
[1672841567894,1.585,1252.5,1252.4,4.20171176]
[1672841568212,3.97352947,1252.5,1252.4,4.20171176]
[1672841568417,1.585,1252.5,1252.4,3.0073]
[1672841568626,3.97352947,1252.5,1252.4,3.0073]
[1672841570418,1.585,1252.5,1252.4,3.0073]
[1672841571152,3.97352947,1252.5,1252.4,3.0073]
[1672841572929,3.97352947,1252.5,1252.3,2.5]
[1672841573140,1.599,1252.4,1252.3,2.5]
[1672841574615,1.599,1252.4,1252.2,8.49315338]
[1672841574822,1.599,1252.4,1252.3,2.0]
[1672841575368,4.786,1252.4,1252.2,3.0073]
[1672841575666,1.597,1252.2,1252.1,2.5]
[1672841575878,5.692,1252.2,1252.1,2.5]
[1672841576082,5.692,1252.2,1252.1,3.69441176]
[1672841577152,5.692,1252.2,1252.1,1.19441176]
[1672841577364,5.692,1252.2,1252.0,8.49315338]
[1672841577566,1.599,1252.1,1252.0,8.49315338]
[1672841578413,1.599,1252.1,1252.0,6.70171176]
[1672841581459,1.599,1252.1,1252.0,8.49315338]
[1672841581668,1.599,1252.1,1252.0,6.70171176]
[1672841584196,1.599,1252.1,1252.0,6.20171176]
[1672841586395,1.599,1252.1,1252.0,7.99315338]
[1672841587454,1.599,1252.1,1252.0,6.79874162]
[1672841588083,1.599,1252.1,1252.0,7.99009622]
[1672841590179,1.599,1252.1,1252.0,6.1986546]
[1672841590393,1.28449429,1252.1,1252.0,5.61498717]
[1672841590605,1.28449429,1252.1,1252.0,3.0073]
[1672841590606,2.5,1252.1,1252.0,3.0073]
[1672841591024,2.5,1252.1,1252.0,4.19971146]
[1672841597333,2.5,1252.1,1252.0,3.0073]
[1672841597754,2.5,1252.1,1252.0,4.19971146]
[1672841598069,2.5,1252.1,1252.0,3.0073]
[1672841599747,3.192,1252.0,1251.9,1.19241146]
[1672841599963,4.787,1252.0,1251.9,1.19241146]
[1672841600389,4.787,1252.0,1251.8,14.88141146]
[1672841600390,8.96166416,1252.0,1251.8,14.88141146]
[1672841600592,5.691,1251.9,1251.7,2.98102865]
[1672841600800,1.585,1251.8,1251.7,2.98102865]
[1672841601220,1.585,1251.8,1251.7,1.19241146]
[1672841602490,3.178,1251.8,1251.7,1.19241146]
[1672841602697,3.178,1251.8,1251.6,5.98832865]
[1672841602902,4.192,1251.7,1251.6,5.98832865]
[1672841603643,4.192,1251.7,1251.6,5.98854904]
[1672841604795,1.593,1251.7,1251.6,5.98854904]
[1672841605116,1.593,1251.7,1251.6,6.79591719]
[1672841605848,1.593,1251.7,1251.6,7.9883944]
[1672841606051,1.593,1251.7,1251.6,6.79591719]
[1672841606480,1.593,1251.7,1251.6,7.98889953]
[1672841606690,1.593,1251.7,1251.6,6.79591719]
[1672841608365,1.593,1251.7,1251.6,2.98133579]
[1672841608573,9.96476421,1251.6,1251.1,16.67002864]
[1672841608785,13.96230128,1251.5,1251.2,2.5]
[1672841608994,13.96230128,1251.5,1251.2,2.45205178]
[1672841608995,1.19120051,1251.4,1251.2,2.45205178]
[1672841609316,2.5,1251.3,1251.2,2.32418987]
[1672841609518,3.192,1251.3,1251.2,2.32418987]
[1672841609727,1.599,1251.3,1251.2,2.32418987]
[1672841617504,1.586,1251.6,1251.2,3.92318987]
[1672841617716,1.586,1251.6,1251.4,4.6063]
[1672841618879,4.57700128,1251.8,1251.5,3.198]
[1672841619097,2.78520051,1251.9,1251.6,4.5993]
[1672841619294,1.594,1251.9,1251.7,2.5]
[1672841619935,4.094,1251.9,1251.7,2.5]
[1672841620873,5.28520051,1251.9,1251.7,2.5]
[1672841621083,2.78520051,1251.9,1251.7,2.5]
[1672841621926,1.594,1251.9,1251.7,2.5]
[1672841622976,1.594,1251.9,1251.8,3.0073]
[1672841628648,2.78520051,1251.9,1251.8,3.0073]
[1672841632969,4.57200128,1251.9,1251.8,3.0073]
[1672841634438,4.57200128,1251.9,1251.7,2.5]
[1672841634655,1.595,1251.8,1251.7,5.5073]
[1672841634865,4.095,1251.8,1251.7,5.5073]
[1672841635068,5.28620051,1251.8,1251.7,5.5073]
[1672841635597,2.78620051,1251.8,1251.7,5.5073]
[1672841635807,5.28620051,1251.8,1251.7,3.0073]
[1672841636009,2.78620051,1251.8,1251.6,2.5]
[1672841636641,4.57300128,1251.8,1251.6,2.5]
[1672841637059,2.78620051,1251.8,1251.6,2.5]
[1672841637922,4.57300128,1251.8,1251.6,2.5]
[1672841638118,2.78620051,1251.8,1251.6,2.5]
[1672841638444,4.57300128,1251.8,1251.6,2.5]
[1672841641793,1.592,1251.7,1251.6,2.5]
[1672841643898,1.6,1251.7,1251.6,2.5]
[1672841647990,1.6,1251.7,1251.6,5.5073]
[1672841648835,2.79120051,1251.7,1251.6,5.5073]
[1672841649675,1.6,1251.7,1251.6,5.5073]
[1672841650096,2.79120051,1251.7,1251.6,5.5073]
[1672841652932,4.57800128,1251.7,1251.6,5.5073]
[1672841653141,4.57800128,1251.7,1251.6,3.0073]
[1672841653352,4.58004624,1251.7,1251.6,3.0073]
[1672841653561,3.38680077,1251.7,1251.6,3.0073]
[1672841654825,5.77533024,1251.7,1251.6,3.0073]
[1672841655137,11.96552947,1251.7,1251.5,2.3852263]
[1672841655357,11.96552947,1251.7,1251.4,5.3925263]
[1672841655358,7.37959257,1251.6,1251.4,5.3925263]
[1672841655657,4.57707802,1251.5,1251.4,5.3925263]
[1672841655869,4.57707802,1251.5,1251.4,7.8925263]
[1672841656082,6.17007802,1251.5,1251.4,5.3925263]
[1672841656286,5.57352947,1251.5,1251.4,3.0073]
[1672841656707,12.3556668,1251.5,1251.4,6.80875219]
[1672841656917,13.55052947,1251.5,1251.4,3.0073]
[1672841657963,14.14877409,1251.5,1251.2,10.86935524]
[1672841658173,2.79432322,1251.3,1251.2,8.36935524]
[1672841658502,7.37613127,1251.3,1251.2,5.3925263]
[1672841658712,8.68069527,1251.3,1251.2,3.0073]
[1672841659439,6.18069527,1251.3,1251.2,3.0073]
[1672841659650,8.68069527,1251.3,1251.2,3.0073]
[1672841659866,6.18069527,1251.3,1251.2,3.0073]
[1672841660079,4.38921044,1251.3,1251.2,3.0073]
[1672841660283,6.18069527,1251.3,1251.2,3.0073]
[1672841660494,4.38921044,1251.3,1251.2,3.0073]
[1672841661760,6.18069527,1251.3,1251.2,3.0073]
[1672841662174,4.38921044,1251.3,1251.2,3.0073]
[1672841662380,1.19321044,1251.3,1251.2,3.0073]
[1672841662598,2.79321044,1251.3,1251.2,3.0073]
[1672841664492,1.6,1251.3,1251.2,3.0073]
[1672841665863,2.98469527,1251.4,1251.2,3.0073]
[1672841666176,3.183,1251.3,1251.2,3.0073]
[1672841666385,5.683,1251.3,1251.2,3.0073]
[1672841666593,3.183,1251.3,1251.2,3.0073]
[1672841668170,4.37621044,1251.3,1251.2,3.0073]
[1672841670172,3.183,1251.3,1251.2,3.0073]
[1672841670589,4.37621044,1251.3,1251.2,3.0073]
[1672841670910,3.183,1251.3,1251.2,3.0073]
[1672841671331,4.37621044,1251.3,1251.2,3.0073]
[1672841671543,2.78421044,1251.3,1251.2,3.0073]
[1672841673859,2.79321044,1251.3,1251.2,3.0073]
[1672841676373,5.77013127,1251.3,1251.0,4.79791194]
[1672841676577,1.599,1251.1,1251.0,3.0073]
[1672841676783,4.57907712,1251.3,1251.0,8.89491194]
[1672841677000,1.19059229,1251.3,1251.2,3.0073]
[1672841677210,1.19059229,1251.4,1251.2,4.6073]
[1672841677635,1.19059229,1251.4,1251.2,6.39791194]
[1672841677846,1.19059229,1251.4,1251.2,4.6073]
[1672841678054,1.19059229,1251.4,1251.2,6.39791194]
[1672841678585,4.58207712,1251.5,1251.2,6.39791194]
[1672841678795,4.58207712,1251.5,1251.4,3.0073]
[1672841679738,3.39148483,1251.5,1251.4,3.0073]
[1672841680477,3.39148483,1251.5,1251.2,6.39791194]
[1672841680785,1.19088712,1251.4,1251.2,6.39791194]
[1672841681000,1.0,1251.3,1251.2,6.39791194]
[1672841681203,1.0,1251.3,1251.2,4.6073]
[1672841681424,1.19088712,1251.4,1251.2,4.6063]
[1672841681425,3.98237195,1251.4,1251.2,4.6063]
[1672841681948,3.98237195,1251.4,1251.2,3.0073]
[1672841682793,2.78988712,1251.3,1251.2,3.0073]
[1672841683003,1.599,1251.3,1251.2,3.0073]
[1672841684580,2.78988712,1251.3,1251.2,3.0073]
[1672841685525,1.59386504,1251.3,1251.2,3.0073]
[1672841686679,2.78475216,1251.3,1251.2,4.79791194]
[1672841690569,4.57623699,1251.3,1251.2,4.79791194]
[1672841690990,3.38534987,1251.3,1251.2,4.79791194]
[1672841691308,4.5783898,1251.3,1251.2,4.79791194]
[1672841691830,3.38534987,1251.3,1251.2,4.79791194]
[1672841692261,5.77399631,1251.3,1251.2,3.0073]
[1672841692574,3.98251148,1251.3,1251.2,3.0073]
[1672841692780,3.98251148,1251.3,1251.2,4.79791194]
[1672841692991,5.57551148,1251.3,1251.2,3.0073]
[1672841693203,11.06228557,1251.3,1251.2,3.0073]
[1672841693828,8.07551148,1251.3,1251.2,4.79791194]
[1672841694358,8.67363913,1251.3,1251.1,1.79061194]
[1672841694567,5.57747661,1251.2,1251.1,1.79061194]
[1672841694883,8.07747661,1251.2,1251.1,1.79061194]
[1672841696146,11.0642507,1251.2,1251.1,1.79061194]
[1672841696355,8.5642507,1251.2,1251.1,1.79061194]
[1672841696555,5.57747661,1251.2,1251.1,1.79061194]
[1672841697399,8.5642507,1251.2,1251.1,1.79061194]
[1672841697818,5.57747661,1251.2,1251.1,1.79061194]
[1672841698354,8.5642507,1251.2,1251.1,1.79061194]
[1672841698667,5.57747661,1251.2,1251.1,1.79061194]
[1672841700552,5.57747661,1251.2,1251.1,4.1807311]
[1672841700763,5.57747661,1251.2,1251.1,1.7955048]
[1672841701186,8.5642507,1251.2,1251.1,1.7955048]
[1672841702652,5.57747661,1251.2,1251.1,1.7955048]
[1672841702863,8.5642507,1251.2,1251.1,1.7955048]
[1672841703076,5.57747661,1251.2,1251.1,1.7955048]
[1672841705603,5.57747661,1251.2,1251.1,3.80178981]
[1672841705604,4.57613597,1251.2,1251.1,3.80178981]
[1672841705914,3.38207799,1251.2,1251.1,3.80178981]
[1672841708220,3.97847661,1251.2,1251.1,1.79529209]
[1672841710123,5.57747661,1251.2,1251.1,1.79529209]
[1672841712741,7.36797506,1251.2,1251.1,1.79529209]
[1672841712955,5.57747661,1251.2,1251.1,1.79529209]
[1672841713688,6.57747661,1251.2,1251.1,1.79529209]
[1672841714323,5.57747661,1251.2,1251.1,1.79529209]
[1672841715898,8.5642507,1251.2,1251.0,9.68781839]
[1672841716100,3.37742508,1251.1,1251.0,9.68781839]
[1672841716315,4.97447661,1251.1,1251.0,7.30259209]
[1672841716529,5.76486785,1251.1,1251.0,7.30259209]
[1672841717157,5.76489262,1251.1,1251.0,7.30259209]
[1672841717363,5.76468935,1251.1,1251.0,7.30259209]
[1672841718007,5.76468935,1251.1,1251.0,4.80259209]
[1672841718319,3.97447661,1251.1,1251.0,4.80259209]
[1672841719472,4.97447661,1251.1,1251.0,4.80259209]
[1672841719787,4.97047661,1251.1,1251.0,4.80259209]
[1672841720314,3.97047661,1251.1,1251.0,4.80259209]
[1672841720515,7.16277409,1251.1,1250.9,1.79529209]
[1672841720728,3.98606105,1251.0,1250.9,1.79529209]
[1672841720939,3.38933066,1251.0,1250.9,4.18051839]
[1672841721148,3.38933066,1251.0,1250.9,4.29529209]
[1672841723262,3.38133066,1251.0,1250.9,4.29529209]
[1672841723885,3.38133066,1251.0,1250.9,7.30259209]
[1672841724725,3.38133066,1251.0,1250.9,9.68781839]
[1672841725248,4.57457523,1251.0,1250.9,7.8925263]
[1672841726730,4.57457523,1251.0,1250.9,9.30932718]
[1672841728104,4.57457523,1251.0,1250.9,7.8925263]
[1672841728622,3.38133066,1251.0,1250.9,9.30934162]
[1672841728936,3.38133066,1251.0,1250.9,9.68792498]
[1672841729144,3.38133066,1251.0,1250.9,9.30932123]
[1672841729354,4.57511551,1251.0,1250.9,9.30932123]
[1672841729565,3.38133066,1251.0,1250.9,6.80932123]
[1672841729773,5.76839171,1251.0,1250.9,4.802747]
[1672841729986,3.97806105,1251.0,1250.9,4.802747]
[1672841730203,3.97806105,1251.0,1250.9,5.99975064]
[1672841730412,6.96483514,1251.0,1250.9,5.99975064]
[1672841730623,4.57777409,1251.0,1250.9,2.99245064]
[1672841730827,4.57777409,1251.0,1250.9,1.19700364]
[1672841731249,4.57777409,1251.0,1250.9,2.99245064]
[1672841731460,4.57777409,1251.0,1250.9,1.19700364]
[1672841731881,6.9652127,1251.0,1250.9,1.19700364]
[1672841732828,4.57777409,1251.0,1250.9,1.19700364]
[1672841733042,6.96545215,1251.0,1250.9,1.19700364]
[1672841733253,6.96545215,1251.0,1250.9,2.99245064]
[1672841733462,6.96545215,1251.0,1250.9,1.19700364]
[1672841733886,8.56645215,1251.0,1250.9,1.19700364]
[1672841734514,5.57967806,1251.0,1250.9,1.19700364]
[1672841734830,5.57967806,1251.0,1250.9,2.99245064]
[1672841735040,5.57967806,1251.0,1250.9,5.99975064]
[1672841735774,8.56645215,1251.0,1250.9,4.20430364]
[1672841736405,5.57967806,1251.0,1250.9,4.20430364]
[1672841739452,5.57967806,1251.0,1250.9,4.19661183]
[1672841741879,5.57967806,1251.0,1250.9,6.69661183]
[1672841742720,5.57967806,1251.0,1250.9,4.19661183]
[1672841744086,5.57967806,1251.0,1250.9,5.99205883]
[1672841744288,5.57967806,1251.0,1250.9,4.19661183]
[1672841747127,6.17877409,1251.0,1250.8,1.795447]
[1672841747338,3.97442316,1250.9,1250.8,1.795447]
[1672841747971,6.47442316,1250.9,1250.8,1.795447]
[1672841748182,3.97442316,1250.9,1250.7,11.2749733]
[1672841748497,3.97442316,1250.9,1250.8,1.795447]
[1672841748816,5.57042316,1250.9,1250.8,1.795447]
[1672841749026,16.1476075,1250.9,1250.8,2.3852263]
[1672841749239,16.1476075,1250.9,1250.6,1.795447]
[1672841749240,7.76398523,1250.9,1250.6,1.795447]
[1672841749451,1.19278608,1250.7,1250.6,4.1806733]
[1672841749649,2.9819652,1250.7,1250.6,4.1806733]
[1672841749967,1.19278608,1250.7,1250.6,6.6806733]
[1672841750180,1.19278608,1250.7,1250.6,4.8852263]
[1672841750384,6.17693245,1250.7,1250.6,4.2944486]
[1672841750594,6.17694386,1250.7,1250.6,4.2944486]
[1672841750805,4.98417912,1250.7,1250.6,4.2944486]
[1672841751014,6.17695386,1250.7,1250.6,4.2944486]
[1672841754708,8.67695386,1250.7,1250.6,1.7944486]
[1672841754909,7.48417912,1250.7,1250.5,9.6869749]
[1672841755115,2.79135221,1250.6,1250.5,9.6869749]
[1672841755327,3.79135221,1250.6,1250.5,7.3017486]
[1672841755542,2.79135221,1250.6,1250.5,7.3017486]
[1672841756494,2.79135221,1250.6,1250.5,9.68651059]
[1672841756699,2.79135221,1250.6,1250.5,7.8925263]
[1672841757228,2.79135221,1250.6,1250.5,9.68620928]
[1672841759121,2.79135221,1250.6,1250.5,7.8925263]
[1672841759432,2.79135221,1250.6,1250.5,7.18616392]
[1672841759632,3.79135221,1250.6,1250.5,7.18616392]
[1672841759847,2.79135221,1250.6,1250.5,4.80093762]
[1672841760062,2.79135221,1250.6,1250.5,7.30093762]
[1672841760271,2.79135221,1250.6,1250.5,4.80093762]
[1672841760588,2.79135221,1250.6,1250.5,9.68616392]
[1672841760899,1.599,1250.6,1250.5,7.8925263]
[1672841761427,1.599,1250.6,1250.5,9.30971144]
[1672841761639,2.79135221,1250.6,1250.5,9.68616217]
[1672841761847,2.79135221,1250.6,1250.5,7.30093587]
[1672841763322,1.19235221,1250.6,1250.5,8.89993587]
[1672841763525,2.38557216,1250.8,1250.5,8.89993587]
[1672841763526,4.56953133,1250.8,1250.5,11.5002281]
[1672841763744,1.19235221,1250.7,1250.6,1.79322698]
[1672841766891,1.19235221,1250.7,1250.6,4.18419628]
[1672841767537,1.19235221,1250.7,1250.6,2.3909693]
[1672841768368,4.56953133,1250.8,1250.6,3.80806144]
[1672841768577,4.56953133,1250.8,1250.7,4.80107651]
[1672841769000,3.37717912,1250.8,1250.7,4.80107651]
[1672841769308,4.57000908,1250.8,1250.7,4.80107651]
[1672841769948,4.57300908,1250.9,1250.7,8.41426768]
[1672841770165,4.57300908,1250.9,1250.8,1.79416023]
[1672841770902,4.57310611,1250.9,1250.8,1.79416023]
[1672841771106,4.5730922,1250.9,1250.8,1.79416023]
[1672841771316,3.38017912,1250.9,1250.8,1.79416023]
[1672841771970,4.57309919,1250.9,1250.8,1.79416023]
[1672841772176,4.57307922,1250.9,1250.8,1.79416023]
[1672841772911,3.38017912,1250.9,1250.8,1.79416023]
[1672841773114,5.76575128,1250.9,1250.7,8.79142953]
[1672841773326,1.19288367,1250.8,1250.7,8.79142953]
[1672841773534,2.19288367,1250.8,1250.7,8.79142953]
[1672841773746,1.19288367,1250.8,1250.7,8.79142953]
[1672841773950,1.19288367,1250.8,1250.7,6.9972693]
[1672841775444,1.19288367,1250.8,1250.7,8.41427967]
[1672841775642,1.19288367,1250.8,1250.7,6.9972693]
[1672841776294,2.98206279,1250.8,1250.7,6.40073541]
[1672841776491,1.19288367,1250.8,1250.7,8.41427839]
[1672841776699,2.98206279,1250.8,1250.7,6.9972693]
[1672841777023,1.19288367,1250.8,1250.7,8.41427778]
[1672841778072,4.57306279,1250.9,1250.7,11.39110672]
[1672841778279,4.57306279,1250.9,1250.8,1.79443049]
[1672841779112,2.98206279,1250.9,1250.8,4.18539979]
[1672841780380,2.98206279,1250.9,1250.8,1.79443049]
[1672841780795,2.98206279,1250.9,1250.8,4.18539979]
[1672841781531,1.19288367,1250.9,1250.8,5.39985167]
[1672841781965,1.19288367,1250.9,1250.8,3.9829693]
[1672841782263,2.98206279,1250.9,1250.8,3.9829693]
[1672841782586,1.19288367,1250.9,1250.8,3.9829693]
[1672841783955,2.98206279,1251.0,1250.8,8.37667309]
[1672841784163,1.78917912,1251.0,1250.9,4.80146416]
[1672841785210,2.98209799,1251.0,1250.9,4.80146416]
[1672841785934,2.98209799,1251.0,1250.9,7.30146416]
[1672841786142,2.98209799,1251.0,1250.9,8.90146416]
[1672841786785,1.19291887,1251.0,1250.9,11.0982693]
[1672841786989,2.98209799,1251.1,1250.9,12.51502231]
[1672841787204,1.19291887,1251.1,1251.0,3.38330542]
[1672841787722,1.19291887,1251.1,1251.0,5.88330542]
[1672841788897,2.98209799,1251.2,1251.0,5.88330542]
[1672841789206,2.98209799,1251.2,1251.1,3.0073]
[1672841790160,1.19291887,1251.2,1251.1,6.40060542]
[1672841791499,2.98209799,1251.3,1251.1,7.99260542]
[1672841791813,2.98209799,1251.3,1251.1,6.39360542]
[1672841793276,1.19291887,1251.3,1251.1,6.39360542]
[1672841793916,2.98209799,1251.3,1251.1,6.39360542]
[1672841794125,1.19291887,1251.3,1251.1,6.39360542]
[1672841794328,1.19291887,1251.3,1251.2,1.599]
[1672841794959,2.98209799,1251.4,1251.2,1.599]
[1672841795282,2.98209799,1251.4,1251.3,4.6063]
[1672841798747,1.19291887,1251.4,1251.3,4.6063]
[1672841799382,2.98209799,1251.4,1251.3,4.6063]
[1672841799592,1.19291887,1251.4,1251.3,4.6063]
[1672841801270,2.98209799,1251.5,1251.3,6.2003]
[1672841801470,2.98209799,1251.5,1251.4,1.589]
[1672841801684,1.78917912,1251.5,1251.4,1.589]
[1672841801894,2.97950585,1251.5,1251.4,1.589]
[1672841802209,1.78917912,1251.5,1251.4,1.589]
[1672841803793,2.97956239,1251.5,1251.4,1.589]
[1672841804217,1.19038327,1251.5,1251.4,1.589]
[1672841804735,2.97956239,1251.5,1251.4,1.589]
[1672841804937,1.19038327,1251.5,1251.4,1.589]
[1672841809151,1.19038327,1251.5,1251.4,4.5963]
[1672841809468,2.97956239,1251.5,1251.4,4.5963]
[1672841809777,1.19038327,1251.5,1251.4,4.5963]
[1672841810926,1.78917912,1251.5,1251.4,3.0073]
[1672841811252,4.28917912,1251.5,1251.4,3.0073]
[1672841811459,7.07862274,1251.5,1251.4,3.0073]
[1672841811985,5.88817912,1251.5,1251.4,3.0073]
[1672841812299,4.57862879,1251.5,1251.4,3.0073]
[1672841812726,3.38817912,1251.5,1251.4,3.0073]
[1672841814607,3.38817912,1251.5,1251.3,1.589]
[1672841814819,1.19062598,1251.4,1251.3,1.589]
[1672841815029,3.69062598,1251.4,1251.3,1.589]
[1672841815239,1.19062598,1251.4,1251.3,1.589]
[1672841815450,2.9798051,1251.4,1251.3,1.589]
[1672841815652,1.19062598,1251.4,1251.3,1.589]
[1672841817027,2.9798051,1251.4,1251.3,1.589]
[1672841817232,7.0728051,1251.4,1251.2,6.39960542]
[1672841817445,7.0728051,1251.4,1251.2,4.6063]
[1672841817446,1.19062598,1251.3,1251.2,4.6063]
[1672841818700,1.19062598,1251.3,1251.2,6.39960542]
[1672841819333,1.18535562,1251.3,1251.2,6.39960542]
[1672841820803,2.97453474,1251.3,1251.2,6.39960542]
[1672841822169,1.78917912,1251.3,1251.2,4.6063]
[1672841823008,4.17475128,1251.3,1251.2,6.39960542]
[1672841823436,1.78917912,1251.3,1251.2,6.39960542]
[1672841826475,2.38557216,1251.3,1251.2,6.39960542]
[1672841826686,4.1757607,1251.3,1251.2,8.40275689]
[1672841827005,1.79018854,1251.3,1251.2,8.40275689]
[1672841828582,1.79018854,1251.3,1251.2,11.37958583]
[1672841829205,2.38557216,1251.3,1251.2,8.40275689]
[1672841829417,2.38557216,1251.3,1251.2,6.9862693]
[1672841830262,2.38557216,1251.3,1251.2,8.40276398]
[1672841830676,4.17724919,1251.3,1251.2,8.40276398]
[1672841832682,2.38557216,1251.3,1251.2,8.40276398]
[1672841833517,4.17750775,1251.3,1251.2,8.40276398]
[1672841833728,4.17750775,1251.3,1251.2,11.37959292]
[1672841833935,1.79193559,1251.3,1251.2,11.38355504]
[1672841834772,4.17750775,1251.3,1251.2,11.38355504]
[1672841834984,4.17750775,1251.3,1251.2,8.4067261]
[1672841835306,2.38557216,1251.3,1251.2,8.4067261]
[1672841839090,2.38557216,1251.3,1251.2,5.3994261]
[1672841839303,2.38557216,1251.3,1251.2,8.4067261]
[1672841840870,2.38557216,1251.3,1251.2,6.99023142]
[1672841841292,2.38557216,1251.3,1251.2,8.4067486]
[1672841843713,2.38557216,1251.3,1251.2,6.99023142]
[1672841844868,2.38557216,1251.3,1251.2,8.40675433]
[1672841847273,2.38557216,1251.3,1251.2,3.98293142]
[1672841847491,1.599,1251.3,1251.2,1.79675843]
[1672841847808,1.599,1251.3,1251.1,4.29675843]
[1672841848008,4.57977879,1251.2,1251.1,4.29675843]
[1672841848220,4.57977879,1251.2,1251.1,1.79675843]
[1672841848645,4.57977879,1251.2,1251.0,8.79798985]
[1672841848857,3.38817798,1251.1,1251.0,8.79798985]
[1672841849066,3.38817798,1251.1,1251.0,6.40305843]
[1672841849595,2.38817798,1251.1,1251.0,8.79798985]
[1672841850853,2.38817798,1251.1,1251.0,6.40305843]
[1672841851690,2.38817798,1251.1,1250.9,4.29675843]
[1672841851691,4.57977879,1251.1,1250.9,4.29675843]
[1672841851905,3.9851337,1251.0,1250.9,4.29675843]
[1672841852112,6.97191249,1251.0,1250.9,4.29675843]
[1672841852639,3.9851337,1251.0,1250.9,2.5]
[1672841853588,3.9851337,1251.0,1250.9,1.79675843]
[1672841853794,3.9851337,1251.0,1250.9,2.5]
[1672841854533,5.7731538,1251.0,1250.9,2.5]
[1672841855578,5.7731538,1251.0,1250.7,3.38152285]
[1672841855579,9.19207879,1251.0,1250.7,3.38152285]
[1672841855793,1.78781443,1250.8,1250.7,5.88152285]
[1672841856634,5.764567,1250.9,1250.8,0.31486325]
[1672841856841,3.38081443,1250.9,1250.8,0.31486325]
[1672841862522,1.593,1250.9,1250.8,0.31486325]
[1672841863158,3.38081443,1250.9,1250.8,0.31486325]
[1672841867674,6.38811443,1250.9,1250.8,0.31486325]
[1672841869874,8.58205257,1250.9,1250.8,0.31486325]
[1672841870501,12.86453256,1250.9,1250.8,0.31486325]
[1672841870712,11.08205257,1250.9,1250.8,0.31486325]
[1672841871025,12.86453282,1250.9,1250.8,0.31486325]
[1672841871241,12.86453449,1250.9,1250.8,0.31486325]
[1672841871453,11.08205257,1250.9,1250.8,0.31486325]
[1672841872190,12.86456971,1250.9,1250.8,0.31486325]
[1672841872392,11.08205257,1250.9,1250.8,0.31486325]
[1672841872600,12.86451458,1250.9,1250.8,0.31486325]
[1672841873866,11.08205257,1250.9,1250.8,0.31486325]
[1672841874078,12.86449734,1250.9,1250.8,0.31486325]
[1672841874284,12.86446734,1250.9,1250.8,0.31486325]
[1672841874495,11.08205257,1250.9,1250.8,0.31486325]
[1672841875658,19.05905257,1250.9,1250.8,0.31486325]
[1672841882175,22.04583136,1250.9,1250.8,0.31486325]
[1672841882597,19.66207879,1250.9,1250.8,0.31486325]
[1672841883543,19.66207879,1250.9,1250.5,5.28643325]
[1672841883544,18.2733,1250.9,1250.4,2.79243325]
[1672841883856,1.0,1250.5,1250.4,5.29243325]
[1672841884063,1.0,1250.5,1250.4,2.79243325]
[1672841884477,5.88357759,1250.6,1250.4,2.79243325]
[1672841884901,5.88357759,1250.6,1250.4,5.29243325]
[1672841885434,1.599,1250.6,1250.4,7.08467314]
[1672841886271,1.599,1250.6,1250.5,1.19343325]
[1672841886482,3.38357759,1250.6,1250.5,1.19343325]
[1672841887430,1.599,1250.6,1250.5,1.19343325]
[1672841888060,3.38357759,1250.6,1250.5,1.19343325]
[1672841888482,3.38357759,1250.6,1250.5,2.98567314]
[1672841888690,3.38357759,1250.6,1250.5,2.98966765]
[1672841889323,3.38357759,1250.6,1250.5,1.19586706]
[1672841890690,3.38357759,1250.6,1250.5,2.98966765]
[1672841890901,5.76301437,1250.6,1250.5,2.98966765]
[1672841891102,3.38357759,1250.6,1250.5,2.98966765]
[1672841892586,3.38357759,1250.6,1250.5,1.79380059]
[1672841893211,3.38357759,1250.6,1250.5,2.99044495]
[1672841893845,3.37557759,1250.6,1250.5,2.99044495]
[1672841894576,5.75501437,1250.6,1250.5,1.79380059]
[1672841895201,3.37557759,1250.6,1250.5,1.79380059]
[1672841895631,5.75501437,1250.6,1250.5,1.79380059]
[1672841895841,3.37557759,1250.6,1250.5,1.79380059]
[1672841896052,5.75501437,1250.6,1250.5,1.79380059]
[1672841896265,3.37557759,1250.6,1250.5,1.79380059]
[1672841896574,3.97043678,1250.6,1250.5,2.99079515]
[1672841897195,3.97043678,1250.6,1250.5,1.19699456]
[1672841897409,3.97043678,1250.6,1250.5,2.99079515]
[1672841897625,3.97043678,1250.6,1250.5,1.19699456]
[1672841897836,3.97043678,1250.6,1250.5,2.99079515]
[1672841898259,3.97043678,1250.6,1250.5,1.19699456]
[1672841898470,3.97043678,1250.6,1250.5,2.99079515]
[1672841899415,3.97043678,1250.6,1250.5,1.19699456]
[1672841899617,3.97043678,1250.6,1250.5,2.99079515]
[1672841904672,3.97043678,1250.6,1250.5,1.79380059]
[1672841905615,3.97043678,1250.6,1250.5,2.99175408]
[1672841905829,6.94473276,1250.6,1250.5,1.79380059]
[1672841906142,3.97043678,1250.6,1250.5,1.79380059]
[1672841906566,6.94473276,1250.6,1250.5,1.79380059]
[1672841906777,4.56529598,1250.6,1250.5,1.79380059]